Cogmind - Beta 12 @@@ ROGUE MODE // 2023.09.16 @ 21:53:35 Player: Roadie Result: Destroyed by D-53 Grenadier with Mini Grenade Launcher Performance ------------- Evolutions (0) 0 Regions Visited (2) 400 Robots Destroyed (24) 120 Value Destroyed (581) 581 Prototype IDs (2) 40 Alien Tech Used (0) 0 Bonus (0) 0 TOTAL SCORE: 1141 Bonus ------- None Cogmind --------- Core Integrity 0/250 Matter 259/300 Energy 100/100 System Corruption 6% Temperature Cool (0) Movement Core (350) Ox6 Location -10/Mines Parts ------- > --- POWER (1) -------- (None) > --- PROPULSION (2) --- (None) > --- UTILITY (2) ------ Large Storage Unit > --- WEAPON (2) ------- (None) > --- INVENTORY (15) --- Light Ion Engine Light Treads Light Treads Light Treads Light Treads Aluminum Leg Titanium Leg Compact Matter Pod (22) Improved Signal Interpreter Targeting Computer ECM Suite Heavy Battle Rifle EMP Blaster Grenade Launcher Peak State ------------ > --- POWER ------------ Ion Engine > --- PROPULSION ------- Light Treads Light Treads > --- UTILITY ---------- Large Storage Unit Sensor Array > --- WEAPON ----------- Heavy Battle Rifle Flak Cannon > --- INVENTORY -------- Light Ion Engine Light Treads Light Treads Light Treads Light Treads Aluminum Leg Titanium Leg Compact Matter Pod Improved Signal Interpreter Targeting Computer ECM Suite High-powered Shotgun EMP Blaster EMP Blaster Grenade Launcher [Rating: 14] Favorites ----------- Power Ion Engine Engine Ion Engine Propulsion Light Treads Treads Light Treads Leg Aluminum Leg Utility Sensor Array Device Sensor Array Storage Small Storage Unit Weapon Medium Laser Energy Gun Medium Laser Ballistic Gun Light Assault Rifle Ballistic Cannon Flak Cannon Launcher EMP Blaster Build | -11 -10 -10 ------- Run | Jun Mat Min Slots Evolved . | . . . Power . | . . . Propulsion . | . . . Utility . | . . . Weapon . | . . . Parts Attached 32 | 6 19 7 Power 4 | 1 3 . Engine 4 | 1 3 . Core . | . . . Reactor . | . . . Propulsion 6 | 2 4 . Treads 4 | 2 2 . Leg 2 | . 2 . Wheel . | . . . Hover . | . . . Flight . | . . . Utility 5 | 1 4 . Device 2 | . 2 . Storage 3 | 1 2 . Processor . | . . . Hackware . | . . . Protection . | . . . Artifact . | . . . Weapon 17 | 2 8 7 Energy Gun 5 | 2 3 . Energy Cannon . | . . . Ballistic Gun 5 | . 2 3 Ballistic Cannon 2 | . . 2 Launcher 5 | . 3 2 Special Weapon . | . . . Impact Weapon . | . . . Slashing Weapon . | . . . Piercing Weapon . | . . . Special Melee Weapon . | . . . Unidentified Prototypes . | . . . Parts Lost 9 | . 2 7 Power 2 | . 1 1 Propulsion 2 | . . 2 Utility 2 | . 1 1 Weapon 3 | . . 3 Highest Loss Streak 7 | . 1 7 To Critical Strikes . | . . . Average Slot Usage (%) 92 | . 89 99 Engine 11 | . 10 13 Treads 19 | . 15 28 Leg 8 | . 12 . Device 9 | . 7 13 Storage 14 | . 14 14 Energy Gun 10 | . 14 3 Ballistic Gun 7 | . 4 13 Ballistic Cannon 3 | . . 9 Launcher 5 | . 8 . Naked Turns . | . . . Heaviest Build 36 | 12 34 36 Greatest Support 40 | 40 40 40 Greatest Overweight (x) 7 | 3 1 7 Average Overweight (x) . | . . . Largest Inventory Capacity 25 | 8 25 15 Average Capacity 11 | 7 9 15 Most Carried 15 | 8 14 15 Average Carried 9 | 4 7 14 Final Capacity 15 | 8 15 15 Final Carried 14 | 6 14 14 Class Distribution -------------------- 100% | Mutant Dominant Class ---------------- Mutant | -10/Materials Mutant | -10/Mines Resources | -11 -10 -10 ----------- Run | Jun Mat Min Matter Collected 631 | 223 184 224 Remotely . | . . . Salvage Created 707 | . 563 144 Parts 37 | . 35 2 Haulers Intercepted . | . . . Recyclers Shooed 1 | . 1 . Parts Field Recycled . | . . . Retrieved Matter . | . . . Parts Self-Destructed . | . . . Prevented . | . . . Kills | -11 -10 -10 ------- Run | Jun Mat Min Combat Hostiles Destroyed 24 | . 17 7 Guns 13 | . 11 2 Cannons 2 | . . 2 AOE 8 | . 5 3 Classes Destroyed 6 | . 4 2 Builder 1 | . 1 . Tunneler 1 | . . 1 Watcher 3 | . 3 . Swarmer 7 | . 6 1 Grunt 12 | . 11 1 Assembled 5 | . . 5 Best Kill Streak 6 | . 6 5 Combat Bots Only 6 | . 6 5 Max Kills in Single Turn 3 | . 2 3 Gunslinging . | . . . Exploded 3 | . 1 3 Melee . | . . . Uniques/NPCs Destroyed . | . . . Combat | -11 -10 -10 -------- Run | Jun Mat Min Damage Taken 1755 | . 745 1010 Core 257 | . 113 144 Absorbed by Shields . | . . . Core Remaining (%) 100 | 100 . . Volleys Fired 63 | . 55 8 Largest 2 | . 2 2 Hottest 100 | . 100 69 Shots Fired 115 | . 99 16 Gun 88 | . 82 6 Cannon 6 | . . 6 Launcher 21 | . 17 4 Special . | . . . Kinetic 25 | . 13 12 Thermal 69 | . 69 . Explosive 5 | . 5 . Electromagnetic 16 | . 12 4 Robot Hit Streak 11 | . 11 3 Robot Miss Streak 7 | . 3 7 Penetration Max . | . . . Secondary Targets 2 | . 2 . Max Gunslinging Chain 1 | . 1 . Shots Hit Robots 70 | . 63 7 Core Hits 65 | . 40 25 Critical Kills . | . . . Critical Parts Destroyed . | . . . Critical Strikes 10 | . 10 . Burn 10 | . 10 . Melee Attacks . | . . . Impact . | . . . Slashing . | . . . Piercing . | . . . Sneak Attacks . | . . . Combat Hostiles . | . . . Follow-up Attacks . | . . . Damage Inflicted 1661 | . 1309 352 Guns 686 | . 646 40 Cannons 99 | . . 99 Explosions 868 | . 655 213 Melee . | . . . Ramming 8 | . 8 . Kinetic 218 | . 79 139 Thermal 581 | . 581 . Explosive 214 | . 214 . Electromagnetic 640 | . 427 213 Impact . | . . . Slashing . | . . . Piercing . | . . . Highest Corruption 6 | . . 6 Average Corruption 5 | . . 5 Corruption Purged . | . . . Corruption Blocked . | . . . Overload Shots . | . . . Overflow Damage 36 | . 36 . Projectiles . | . . . Explosions 36 | . 36 . Melee . | . . . Knockbacks 5 | . . 5 Impact . | . . . Kinetic 5 | . . 5 Secondary . | . . . Self-Inflicted Damage 20 | . 20 . Shots 1 | . 1 . Rammed 3 | . 3 . Targets Rammed 3 | . 3 . Kicked . | . . . Crushed . | . . . Highest Temperature 411 | . 411 26 Average Temperature 91 | . 101 7 Received Heat Transfer 316 | . 276 40 Siege Activations . | . . . Robots Corrupted . | . . . Combat Hostiles . | . . . Parts Fried . | . . . Impact Corruptions . | . . . Robots Melted 1 | . 1 . Combat Hostiles 1 | . 1 . Parts Melted 8 | . 8 . Heat Transferred 2455 | . 2455 . Parts Sabotaged . | . . . Parts Stolen . | . . . Parts Stripped . | . . . Power Chain Reactions 1 | . 1 . Missiles Intercepted . | . . . Alert | -11 -10 -10 ------- Run | Jun Mat Min Peak Influence 352 | . 352 118 Initial 78 | . . 78 Average 136 | . 184 74 Maximum Alert Level 1 | . 1 . Low Security (%) 70 | 100 50 100 Level 1 29 | . 49 . Level 2 . | . . . Level 3 . | . . . Level 4 . | . . . Level 5 . | . . . High Security . | . . . Max Security . | . . . Squads Dispatched 4 | . 3 1 Investigation 4 | . 3 1 Extermination . | . . . Reinforcement . | . . . Assault . | . . . Garrison . | . . . Intercept . | . . . Searches Triggered . | . . . Construction Impeded . | . . . Haulers Reinforced . | . . . Active Scanning Responses . | . . . Cargo Convoy Interrupts . | . . . Stealth | -11 -10 -10 --------- Run | Jun Mat Min Distress Signals 2 | . 2 . Communications Jammed . | . . . Distress Signals . | . . . Times Spotted 47 | . 26 21 Peak Tracking Total 13 | . 4 13 Tactical Retreats 3 | . 2 1 Traps | -11 -10 -10 ------- Run | Jun Mat Min Traps Triggered 2 | . 2 . Indirectly 2 | . 2 . Trap Hack Attempts . | . . . Triggered . | . . . Disarmed . | . . . Reprogrammed . | . . . Reused . | . . . Traps Extracted . | . . . Installed . | . . . Triggered . | . . . Machines | -11 -10 -10 ---------- Run | Jun Mat Min Machines Disabled 3 | . 3 . Max in Single Turn 1 | . 1 . Machines Repaired . | . . . Machines Sabotaged . | . . . Overloaded Fab Kills . | . . . Hacking | -11 -10 -10 --------- Run | Jun Mat Min Machines Accessed 5 | . 4 1 Terminals 3 | . 3 . Fabricators . | . . . Repair Stations 1 | . 1 . Recycling Units . | . . . Scanalyzers . | . . . Garrison Access . | . . . Total Hacks 12 | . 11 1 Successful 8 | . 7 1 Failed 4 | . 4 . Catastrophic 1 | . 1 . Database Lockouts . | . . . Manual . | . . . Terminals 10 | . 10 . Fabricators . | . . . Repair Stations 1 | . 1 . Recycling Units . | . . . Scanalyzers . | . . . Garrison Access . | . . . Terminal Hacks 8 | . 7 1 Record 1 | . 1 . Prototype ID Bank 1 | . 1 . Open Door 1 | . . 1 Emergency Access Points 1 | . 1 . Terminal Index 1 | . 1 . Dispatch Records 1 | . 1 . Zone Layout 2 | . 2 . Fabricator Hacks . | . . . Repair Station Hacks . | . . . Recycling Unit Hacks . | . . . Scanalyzer . | . . . Garrison Access Hacks . | . . . Unauthorized Hacks . | . . . Terminals . | . . . Fabricators . | . . . Repair Stations . | . . . Recycling Units . | . . . Scanalyzers . | . . . Garrison Access . | . . . Data Cores Recovered . | . . . Used . | . . . Hacking Detections 2 | . 2 . Full Trace Events 2 | . 2 . Feedback Events . | . . . Feedback Blocked . | . . . Robot Schematics Acquired . | . . . Robots Built . | . . . Authchips . | . . . Time . | . . . Total Robot Build Rating . | . . . Part Schematics Acquired . | . . . Parts Built . | . . . Authchips . | . . . Time . | . . . Total Part Build Rating . | . . . Parts Repaired . | . . . Time . | . . . Parts Recycled . | . . . Recycled Matter . | . . . Retrieved Matter . | . . . Retrieved Components . | . . . Parts Scanalyzed . | . . . Part Schematics Acquired . | . . . Parts Damaged . | . . . Bothacking | -11 -10 -10 ------------ Run | Jun Mat Min Used RIF Installer . | . . . Robots Hacked . | . . . Non-combat . | . . . Combat . | . . . Robot Hacks Applied . | . . . Relay Couplers Released . | . . . Fabnet Peak Effective % . | . . . Robots Rewired . | . . . Allies Hacked . | . . . Hacks Repelled . | . . . Allies | -11 -10 -10 -------- Run | Jun Mat Min Total Allies . | . . . Largest Group . | . . . Highest-Rated Group . | . . . Highest-Rated Ally . | . . . Total Orders . | . . . Ally Attacks . | . . . Total Damage . | . . . Kills . | . . . Allies Corrupted . | . . . Allies Melted . | . . . Intel | -11 -10 -10 ------- Run | Jun Mat Min Robot Analysis Total . | . . . Derelict Logs Recovered 1 | . . 1 Drone Launches . | . . . Drone Recoveries . | . . . Exploration | -11 -10 -10 ------------- Run | Jun Mat Min Turns Passed 1468 | 79 881 508 Spaces Moved 761 | 40 435 286 Core 20 | 19 . 1 Treads 508 | 21 202 285 Legs 233 | . 233 . Wheels . | . . . Hover . | . . . Flight . | . . . Fastest Speed 50 | 50 120 160 Average Speed 152 | 156 146 161 Slowest Speed 400 | 200 240 400 Overloaded Moves . | . . . Propulsion Burnouts . | . . . Robots Hopped . | . . . Cave-ins Triggered . | . . . Exploration Rate (%) 43 | 5 60 64 Regions Visited 2 Branch Regions 1 Pre-discovered Areas . | . . . Known Exits Taken . | . . . Unknown Exits Taken 2 | 1 1 . Scrap Searched . | . . . Spaces Dug . | . . . Terrain Destroyed 25 | . 25 . Melee . | . . . Projectile . | . . . AOE 25 | . 25 . Terrain Rammed . | . . . Walls Destroyed . | . . . Machines Disabled . | . . . Actions | -11 -10 -10 --------- Run | Jun Mat Min Total 957 | 56 583 318 Wait 34 | . 32 2 Move 759 | 39 434 286 Hop . | . . . Pick Up 42 | 11 23 8 Fast Attach 4 | 1 3 . Attach 7 | 5 1 1 Detach . | . . . Swap 21 | . 15 6 Drop 24 | . 17 7 Fire 63 | . 55 8 Melee . | . . . Ram . | . . . Kick . | . . . Crush 3 | . 3 . Escape Stasis . | . . . Rewire . | . . . Trap . | . . . Miscellaneous . | . . . Route ------- -11/Junkyard -10/Materials (discovered 2 exits: *Min x2) -10/Mines (discovered 2 exits: [*Mat] / [*Exi]) History --------- Turn | Location | Event 6 | -11/Junkyard | Discovered new exit (range 15) 80 | -11/Junkyard | Entered Materials 306 | -10/Materials | Build established: Mutant 582 | -10/Materials | Discovered new exit (range 16) 869 | -10/Materials | Discovered new exit (range 15) 961 | -10/Materials | Entered Mines 993 | -10/Mines | Deemed a non-threat by the Exiles lab entrance 995 | -10/Mines | Discovered new exit (range 5) 1090 | -10/Mines | Met a Derelict shopkeep closing up shop 1176 | -10/Mines | Learned Materials interactive machine intel 1231 | -10/Mines | Discovered new exit (range 7) 1379 | -10/Mines | A weapon hastily lodged in a ceiling crevice suddenly fell to the ground 1426 | -10/Mines | Assembled infested the area 1441 | -10/Mines | Core integrity fell below 50% 1468 | -10/Mines | Core integrity fell below 20% 1469 | -10/Mines | Destroyed by D-53 Grenadier with Mini Grenade Launcher Last Messages --------------- Ion Engine destroyed. System corrupted by crushing effect (+1). Sensor Array destroyed. System corrupted by crushing effect (+5). as-41880 sneak attacks. D-53 Grenadier unfolds itself. as-77969 destroyed. as-41880 knocked back. as-44743 knocked back. as-44743 sneak attacks. as-66916 sneak attacks. U-05 Engineer destroyed. as-41880 destroyed. as-44743 destroyed. as-66916 destroyed. as-60923 destroyed. as-90738 destroyed. Lgt. Treads destroyed. Flak Cannon destroyed. Hpw. Shotgun destroyed. Map ----- +----------------------------------------------------+ | ??????????????????????????????????????????????? | | ??????????????????????????????????????????????? | | ??????????????????????????????????????????????? | | ?????????????????????????????????????????????## | | ??????????????###????????????????????????????# | | ?????????????? ?????????????? ????????????# | | ?????????????? ?????????????# ?????????????# | | ??????????????# #????????????# #????????????# | | ??????????????# #????????????# ##???????????# | | ?????????????##% #???????????## #???????????? | | ????????????## #???????????# #???????????? | | ???????????## % ##??????????# #???????????? | | ???????????# aa###????????# #????####???? | | ???????????# ##???????# #???## ##??? | | ????????????# a% ##??????# ##??# ##?? | | ????????????# a #???##### #??# ##? | | ?????# ##### ##?## ## #??# #? | | ?????# ### ##?## ## | | ?????# ### # #### | | ?????####????## % d " ##[ [ ## | | ??????????????### d * =##? | | ?????????????????# ## ## ####?? | | ?????????????????# #### ### ##????? | | ?????????????????# #???## #?#####?????? | | ?????????????????# ##???# #???????????? | | ??????????????????# @ #???# #???????????? | | ??????????? ##???# #???????????? | | ???????# ??# #???????????? | | ????????# ## #?# #???????????? | | ????????## #??#?# #???????????? | | ?????????# #????# #???????????? | | ?????????## ???? #???????????? | | ??????????##### ##???# #???????????? | | ??????????????## ## ##????? ????????????? | | ???????????????# #??##?????? ????????????? | | ???????????????# ??????????? ????????????? | | ???????????????## ?????????????????????????? | | ????????????????## ?????????????????????????? | | ?????????????????## ?????????????????????????? | | ??????????????????##??????????????????????????? | | ??????????????????????????????????????????????? | | ??????????????????????????????????????????????? | | ??????????????????????????????????????????????? | | ??????????????????????????????????????????????? | | ??????????????????????????????????????????????? | | ??????????????????????????????????????????????? | | ??????????????????????????????????????????????? | | ??????????????????????????????????????????????? | | ??????????????????????????????????????????????# | | ??????????????????????????????????????????????# | +----------------------------------------------------+ Best States ------------- Heat Dissipation 25 Energy Generation 10 Energy Capacity 250 Matter Stores 300 Matter Capacity 300 Sight Range 16 Robot Scan Range 14 Terrain Scan Density 10 Evasion (%) 55 Recoil Reduction 2 Item Schematics ----------------- None Robot Schematics ------------------ None Fabricated ------------ Nothing Alien Tech Used ----------------- None Achievements -------------- None Challenges ------------ None Game ------ Seed EnhancedChainInterrupter Manual? 0 Play Time 00:22:57 Cumulative 11.7 hours Start 2023.09.16 @ 21:29:20 End 2023.09.16 @ 21:53:35 Sessions 1 Manual Loads 0 Difficulty Rogue Special Mode None Game No. 13 Rogue 13 Adventurer 0 Explorer 0 Win Type - Total 0 Types 0/0/0/0/0/0/0/0/0 Lore% 17 Gallery% 16 Achievement% 18 Wizard Run 0 Options --------- ASCII 0 Keyboard 0 Movement Mouse Keybinds 0 Fullscreen 2 Font 24/Terminus Map View 183x50 Tactical HUD 0 Map Filters NONE Filters NONE Steam 1 RUN: 020be34e-5281-4594-b149-da8f99229983